fUST/lending_fUST_20250102
["ID","MTS","AMOUNT","RATE_DAILY","PERIOD"]
[347423464,1735781455223,-1000.0,0.00022,2]
[347423465,1735781455232,-400.0,0.00022,5]
[347423466,1735781455241,-2000.0,0.00022,5]
[347423467,1735781455251,-2000.0,0.00022,2]
[347423468,1735781455260,-2000.0,0.00022,2]
[347423469,1735781455270,-151.0,0.00022,7]
[347423470,1735781455281,-151.0,0.00022,7]
[347423471,1735781455291,-216.225323,0.00022,7]
[347423472,1735781455300,-151.0,0.00022,7]
[347423473,1735781455310,-560.013014,0.00022,7]
[347423474,1735781455319,-560.013014,0.00022,7]
[347423475,1735781455328,-151.187512,0.00022,7]
[347423476,1735781455338,-151.187512,0.00022,7]
[347423477,1735781455347,-151.0,0.00022,7]
[347423478,1735781455356,-198.600735,0.00022,2]
[347423479,1735781455365,-198.600735,0.00022,2]
[347423480,1735781455375,-168.998437,0.00022,7]
[347423481,1735781455384,-168.998437,0.00022,7]
[347423482,1735781455394,-151.0,0.00022,7]
[347423483,1735781455403,-151.0,0.00022,7]
[347423484,1735781455413,-151.0,0.00022,7]
[347423485,1735781455422,-224.771737,0.00022,7]
[347423486,1735781455432,-224.771737,0.00022,7]
[347423487,1735781455442,-988.337518,0.00022,7]
[347423488,1735781455451,-988.337518,0.00022,7]
[347423489,1735781455461,-151.0,0.00022,7]
[347423490,1735781455471,-804.962658,0.00022,7]
[347423491,1735781455485,-804.962658,0.00022,7]
[347423492,1735781455495,-362.02254016,0.00022005,2]
[347423493,1735781455504,-37280.19231216,0.0002201,16]
[347423494,1735781455514,-151.0,0.0002201,7]
[347423495,1735781455526,-151.187512,0.0002201,7]
[347423496,1735781455536,-151.187512,0.0002201,7]
[347423497,1735781455549,-151.0,0.0002201,7]
[347423498,1735781455559,-198.600735,0.0002201,2]
[347423499,1735781455569,-198.600735,0.0002201,2]
[347423500,1735781455578,-168.998437,0.0002201,7]
[347423501,1735781455588,-168.998437,0.0002201,7]
[347423502,1735781455597,-151.0,0.0002201,7]
[347423503,1735781455607,-151.0,0.0002201,7]
[347423504,1735781455616,-242.733885,0.0002201,7]
[347423505,1735781455627,-224.771737,0.0002201,7]
[347423506,1735781455637,-224.771737,0.0002201,7]
[347423507,1735781455647,-988.337518,0.0002201,7]
[347423508,1735781455657,-988.337518,0.0002201,7]
[347423509,1735781455666,-168.410036,0.0002201,7]
[347423510,1735781455676,-804.962658,0.0002201,7]
[347423511,1735781455686,-804.962658,0.0002201,7]
[347423512,1735781455695,-260.885424,0.00022055,2]
[347423513,1735781455705,-9400.91,0.000221,14]
[347423514,1735781455714,-151.0,0.000221,7]
[347423515,1735781455723,-560.013014,0.000221,7]
[347423516,1735781455733,-560.013014,0.000221,7]
[347423517,1735781455743,-2662.12727063,0.000221,2]
[347423518,1735781455752,-672.0,0.00022191,3]
[347423519,1735781455762,-151.0,0.00022191,7]
[347423520,1735781455772,-151.0,0.00022191,7]
[347423521,1735781455782,-500.0,0.00022191,3]
[347423522,1735781455791,-500.0,0.00022191,3]
[347423523,1735781455800,-635.64,0.00022191,3]
[347423524,1735781455809,-500.0,0.00022191,3]
[347423525,1735781455819,-3171.44,0.00022191,3]
[347423526,1735781455829,-608.36,0.00022191,3]
[347423527,1735781455838,-500.0,0.00022191,3]
[347423528,1735781455848,-567.2,0.00022191,3]
[347423529,1735781455858,-500.0,0.00022191,3]
[347423530,1735781455867,-552.0,0.00022191,3]
[347423531,1735781455876,-500.0,0.00022191,3]
[347423532,1735781455886,-682.65,0.00022191,3]
[347423533,1735781455896,-500.0,0.00022191,3]
[347423534,1735781455905,-688.94,0.00022191,3]
[347423535,1735781455915,-500.0,0.00022191,3]
[347423536,1735781455925,-500.0,0.00022191,3]
[347423537,1735781455934,-614.51,0.00022191,3]
[347423538,1735781455944,-500.0,0.00022191,3]
[347423539,1735781455954,-500.0,0.00022191,3]
[347423540,1735781455964,-563.24,0.00022191,3]
[347423541,1735781455973,-1968.22,0.00022191,3]
[347423542,1735781455983,-500.0,0.00022191,3]
[347423543,1735781455992,-500.0,0.00022191,3]
[347423544,1735781456001,-500.0,0.00022191,3]
[347423545,1735781456010,-772.57,0.00022191,3]
[347423546,1735781456020,-500.0,0.00022191,3]
[347423547,1735781456031,-500.0,0.00022191,3]
[347423548,1735781456040,-1364.88,0.00022191,3]
[347423549,1735781456049,-17282.47,0.00022191,3]
[347423550,1735781456059,-500.0,0.00022191,3]
[347423551,1735781456069,-920.77,0.00022191,3]
[347423552,1735781456078,-650.43,0.00022191,3]
[347423553,1735781456087,-668.77,0.00022191,3]
[347423554,1735781456097,-3722.61,0.00022191,3]
[347423555,1735781456106,-1336.34,0.00022191,3]
[347423556,1735781456115,-1957.8,0.00022191,3]
[347423557,1735781456125,-500.0,0.00022191,3]
[347423558,1735781456135,-2438.59,0.00022191,3]
[347423559,1735781456144,-907.56,0.00022191,2]
[347423560,1735781456154,-871.54,0.00022191,3]
[347423561,1735781456163,-500.0,0.00022191,3]
[347423562,1735781456173,-500.0,0.00022191,3]
[347423563,1735781456182,-583.03,0.00022191,3]
[347423564,1735781456192,-1532.37,0.00022191,3]
[347423565,1735781456202,-500.0,0.00022191,3]
[347423566,1735781456211,-500.0,0.00022191,3]
[347423567,1735781456221,-955.72,0.00022191,3]
[347423568,1735781456230,-1437.5,0.00022191,3]
[347423569,1735781456240,-838.21,0.00022191,3]
[347423570,1735781456249,-451.47070037,0.00022191,3]
[347423571,1735781456357,-500.0,0.00022191,3]
[347423572,1735781456381,-535.61557065,0.00022191,3]
[347423573,1735781456391,-841.01,0.00022191,3]
[347423574,1735781456400,-500.0,0.00022191,3]
[347423575,1735781456410,-962.78,0.00022191,3]
[347423576,1735781456419,-1333.99,0.00022191,3]
[347423577,1735781456428,-500.0,0.00022191,3]
[347423578,1735781456438,-500.0,0.00022192,3]
[347423579,1735781456448,-20000.0,0.000222,2]
[347423580,1735781456457,-151.0,0.000222,7]
[347423581,1735781456467,-151.187512,0.000222,7]
[347423582,1735781456476,-151.187512,0.000222,7]
[347423583,1735781456485,-151.0,0.000222,7]
[347423584,1735781456494,-198.600735,0.000222,2]
[347423585,1735781456503,-198.600735,0.000222,2]
[347423586,1735781456513,-168.998437,0.000222,7]
[347423587,1735781456522,-168.998437,0.000222,7]
[347423588,1735781456532,-151.0,0.000222,7]
[347423589,1735781456542,-151.0,0.000222,7]
[347423590,1735781456551,-224.771737,0.000222,7]
[347423591,1735781456560,-224.771736,0.000222,7]
[347423592,1735781456570,-988.337518,0.000222,7]
[347423593,1735781456579,-988.337518,0.000222,7]
[347423594,1735781456588,-804.962658,0.000222,7]
[347423595,1735781456598,-804.962657,0.000222,7]
[347423596,1735781456607,-2662.12727055,0.00022214,2]
[347423597,1735781456616,-362.02254016,0.00022216,2]
[347423598,1735781456626,-1680.29031754,0.000223,30]
[347423599,1735781456635,-2000.0,0.000223,2]
[347423600,1735781456644,-151.0,0.000223,7]
[347423601,1735781456654,-560.013014,0.000223,7]
[347423602,1735781456663,-560.013014,0.000223,7]
[347423603,1735781456673,-2662.12727055,0.00022328,2]
[347423604,1735781456682,-161.0,0.00022361,2]
[347423605,1735781456692,-161.66,0.00022361,2]
[347423606,1735781456701,-226.41,0.00022393,2]
[347423607,1735781456711,-264.34,0.000224,31]
[347423608,1735781456720,-264.34,0.000224,31]
[347423609,1735781456730,-264.34,0.000224,31]
[347423610,1735781456739,-264.34,0.000224,31]
[347423611,1735781456748,-264.34,0.000224,31]
[347423612,1735781456757,-264.34,0.000224,31]
[347423613,1735781456767,-264.34,0.000224,31]
[347423614,1735781456778,-264.34,0.000224,31]
[347423615,1735781456787,-264.34,0.000224,31]
[347423616,1735781456796,-264.34,0.000224,31]
[347423617,1735781456806,-264.34,0.000224,31]
[347423618,1735781456814,-264.34,0.000224,31]
[347423619,1735781456824,-264.34,0.000224,31]
[347423620,1735781456833,-264.34,0.000224,31]
[347423621,1735781456842,-264.34,0.000224,31]
[347423622,1735781456852,-264.34,0.000224,31]
[347423623,1735781456861,-362.02254016,0.00022426,2]
[347423624,1735781456870,-2662.12727055,0.00022443,2]
[347423625,1735781456880,-151.0,0.00022465,7]
[347423626,1735781456889,-151.0,0.00022465,7]
[347423627,1735781456898,-500.0,0.00022465,3]
[347423628,1735781456908,-500.0,0.00022465,3]
[347423629,1735781456917,-635.64,0.00022465,3]
[347423630,1735781456926,-500.0,0.00022465,3]
[347423631,1735781456936,-3171.44,0.00022465,3]
[347423632,1735781456945,-608.36,0.00022465,3]
[347423633,1735781456954,-500.0,0.00022465,3]
[347423634,1735781456963,-567.2,0.00022465,3]
[347423635,1735781456972,-500.0,0.00022465,3]
[347423636,1735781456982,-552.0,0.00022465,3]
[347423637,1735781456991,-500.0,0.00022465,3]
[347423638,1735781457000,-682.65,0.00022465,3]
[347423639,1735781457009,-276.19885752,0.00022465,3]
[347423640,1735781457018,-688.94,0.00022465,3]
[347423641,1735781457030,-500.0,0.00022465,3]
[347423642,1735781457039,-500.0,0.00022465,3]
[347423643,1735781457047,-614.51,0.00022465,3]
[347423644,1735781457057,-500.0,0.00022465,3]
[347423645,1735781457066,-500.0,0.00022465,3]
[347423646,1735781457075,-563.24,0.00022465,3]
[347423647,1735781457084,-1968.22,0.00022465,3]
[347423648,1735781457093,-500.0,0.00022465,3]
[347423649,1735781457103,-500.0,0.00022465,3]
[347423650,1735781457112,-500.0,0.00022465,3]
[347423651,1735781457121,-772.57,0.00022465,3]
[347423652,1735781457130,-500.0,0.00022465,3]
[347423653,1735781457140,-500.0,0.00022465,3]
[347423654,1735781457149,-1364.88,0.00022465,3]
[347423655,1735781457158,-17282.47,0.00022465,3]
[347423656,1735781457168,-500.0,0.00022465,3]
[347423657,1735781457177,-920.77,0.00022465,3]
[347423658,1735781457187,-650.43,0.00022465,3]
[347423659,1735781457196,-668.77,0.00022465,3]
[347423660,1735781457205,-3722.61,0.00022465,3]
[347423661,1735781457214,-1336.34,0.00022465,3]
[347423662,1735781457223,-1957.8,0.00022465,3]
[347423663,1735781457233,-500.0,0.00022465,3]
[347423664,1735781457242,-2438.59,0.00022465,3]
[347423665,1735781457251,-907.56,0.00022465,2]
[347423666,1735781457261,-871.54,0.00022465,3]
[347423667,1735781457270,-500.0,0.00022465,3]
[347423668,1735781457282,-500.0,0.00022465,3]
[347423669,1735781457291,-583.03,0.00022465,3]
[347423670,1735781457302,-1532.37,0.00022465,3]
[347423671,1735781457311,-500.0,0.00022465,3]
[347423672,1735781457321,-500.0,0.00022465,3]
[347423673,1735781457330,-955.72,0.00022465,3]
[347423674,1735781457339,-1437.5,0.00022465,3]
[347423675,1735781457349,-838.21,0.00022465,3]
[347423676,1735781457358,-500.0,0.00022465,3]
[347423677,1735781457368,-841.01,0.00022465,3]
[347423678,1735781457377,-962.78,0.00022465,3]
[347423679,1735781457386,-500.0,0.00022465,3]
[347423680,1735781457395,-1333.99,0.00022465,3]
[347423681,1735781457404,-500.0,0.00022465,3]
[347423682,1735781457414,-869.09954132,0.00022466,3]
[347423683,1735781457426,-3281.83026829,0.0002247,15]
[347423684,1735781457440,-20000.0,0.000225,2]
[347423685,1735781457454,-151.0,0.000225,7]
[347423686,1735781457469,-560.013014,0.000225,7]
[347423687,1735781457481,-560.013014,0.000225,7]
[347423688,1735781457493,-151.187512,0.000225,7]
[347423689,1735781457507,-151.187514,0.000225,7]
[347423690,1735781457520,-151.0,0.000225,7]
[347423691,1735781457536,-198.600735,0.000225,2]
[347423692,1735781457549,-198.600743,0.000225,2]
[347423693,1735781457561,-168.998437,0.000225,7]
[347423694,1735781457575,-168.998433,0.000225,7]
[347423695,1735781457590,-988.337518,0.000225,7]
[347423696,1735781457603,-988.33751,0.000225,7]
[347423697,1735781457615,-153.86,0.00022547,2]
[347423698,1735781457628,-324.64236567,0.00022549,2]
[347423699,1735781457640,-2662.12727055,0.00022557,2]
[347423700,1735781457654,-203.8,0.00022613,2]
[347423701,1735781457667,-362.02254016,0.00022637,2]
[347423702,1735781457679,-2662.12727055,0.00022671,2]
[347423703,1735781457691,-20000.0,0.000227,2]
[347423704,1735781457702,-151.0,0.000227,7]
[347423705,1735781457714,-674.34,0.00022739,3]
[347423706,1735781457726,-151.0,0.00022739,7]
[347423707,1735781457740,-577.62626852,0.00022739,3]
[347423708,1735781457753,-500.0,0.00022739,3]
[347423709,1735781457769,-635.64,0.00022739,3]
[347423710,1735781457784,-500.0,0.00022739,3]
[347423711,1735781457797,-3171.44,0.00022739,3]
[347423712,1735781457810,-608.36,0.00022739,3]
[347423713,1735781457822,-500.0,0.00022739,3]
[347423714,1735781457832,-567.2,0.00022739,3]
[347423715,1735781457843,-500.0,0.00022739,3]
[347423716,1735781457854,-552.0,0.00022739,3]
[347423717,1735781457867,-500.0,0.00022739,3]
[347423718,1735781457880,-682.65,0.00022739,3]
[347423719,1735781457893,-688.94,0.00022739,3]
[347423720,1735781457903,-500.0,0.00022739,3]
[347423721,1735781457915,-500.0,0.00022739,3]
[347423722,1735781457926,-614.51,0.00022739,3]
[347423723,1735781457938,-500.0,0.00022739,3]
[347423724,1735781457950,-500.0,0.00022739,3]
[347423725,1735781457961,-563.24,0.00022739,3]
[347423726,1735781457972,-1968.22,0.00022739,3]
[347423727,1735781457982,-500.0,0.00022739,3]
[347423728,1735781457993,-500.0,0.00022739,3]
[347423729,1735781458004,-500.0,0.00022739,3]
[347423730,1735781458015,-772.57,0.00022739,3]
[347423731,1735781458027,-500.0,0.00022739,3]
[347423732,1735781458038,-444.79917342,0.00022739,3]
[347423733,1735781458049,-1364.88,0.00022739,3]
[347423734,1735781458060,-17282.47,0.00022739,3]
[347423735,1735781458072,-500.0,0.00022739,3]
[347423736,1735781458084,-920.77,0.00022739,3]
[347423737,1735781458095,-650.43,0.00022739,3]
[347423738,1735781458107,-668.77,0.00022739,3]
[347423739,1735781458118,-3722.61,0.00022739,3]
[347423740,1735781458130,-1336.34,0.00022739,3]
[347423741,1735781458142,-1957.8,0.00022739,3]
[347423742,1735781458154,-500.0,0.00022739,3]
[347423743,1735781458165,-2438.59,0.00022739,3]
[347423744,1735781458177,-907.56,0.00022739,2]
[347423745,1735781458189,-871.54,0.00022739,3]
[347423746,1735781458200,-500.0,0.00022739,3]
[347423747,1735781458212,-500.0,0.00022739,3]
[347423748,1735781458223,-583.03,0.00022739,3]
[347423749,1735781458234,-1532.37,0.00022739,3]
[347423750,1735781458245,-500.0,0.00022739,3]
[347423751,1735781458257,-500.0,0.00022739,3]
[347423752,1735781458269,-955.72,0.00022739,3]
[347423753,1735781458282,-1437.5,0.00022739,3]
[347423754,1735781458294,-838.21,0.00022739,3]
[347423755,1735781458305,-552.89195113,0.00022739,3]
[347423756,1735781458316,-841.01,0.00022739,3]
[347423757,1735781458327,-500.0,0.00022739,3]
[347423758,1735781458339,-962.78,0.00022739,3]
[347423759,1735781458350,-1333.99,0.00022739,3]
[347423760,1735781458362,-500.0,0.00022739,3]
[347423761,1735781458373,-587.0,0.00022775,2]
[347423762,1735781458385,-2662.12727055,0.00022785,2]
[347423763,1735781458396,-3655.29,0.000228,14]
[347423764,1735781458408,-394.0,0.00022847,2]
[347423765,1735781458419,-362.02254016,0.00022847,2]
[347423766,1735781458430,-151.0,0.00022886,7]
[347423767,1735781458441,-2662.12727055,0.000229,2]
[347423768,1735781458452,-5530.79768649,0.000229,2]
[347423769,1735781458463,-243.79247053,0.00023,2]
[347423770,1735781458475,-33498.92449837,0.00023,2]
[347423771,1735781458491,-155.76808972,0.00023,10]
[347423772,1735781458502,-4000.0,0.00023,7]
[347423773,1735781458513,-500.0,0.00023,5]
[347423774,1735781458526,-500.0,0.00023,4]
[347423775,1735781458537,-1000.0,0.00023,2]
[347423776,1735781458548,-261.23334774,0.00023,2]
[347423777,1735781458560,-20000.0,0.00023,2]
[347423778,1735781458573,-9455.44408357,0.00023,4]
[347423779,1735781458584,-200.0,0.00023,2]
[347423780,1735781458596,-820.8,0.00023,2]
[347423781,1735781458607,-820.799999,0.00023,2]
[347423782,1735781458619,-151.0,0.00023,7]
[347423783,1735781458631,-11601.17,0.00023,2]
[347423784,1735781458643,-560.013014,0.00023,7]
[347423785,1735781458654,-560.013014,0.00023,7]
[347423786,1735781458666,-150.0,0.00023,2]
[347423787,1735781458677,-490.42677733,0.00023013,2]
[347423788,1735781458689,-13809.66073895,0.00023013,2]
[347423789,1735781458701,-674.34,0.00023013,3]
[347423790,1735781458712,-151.0,0.00023013,7]
[347423791,1735781458889,-560.013014,0.00023013,7]
[347423792,1735781458903,-560.013014,0.00023013,7]
[347423793,1735781458913,-500.0,0.00023013,3]
[347423794,1735781458923,-635.64,0.00023013,3]
[347423795,1735781458933,-500.0,0.00023013,3]
[347423796,1735781458942,-3171.44,0.00023013,3]
[347423797,1735781458952,-608.36,0.00023013,3]
[347423798,1735781458961,-500.0,0.00023013,3]
[347423799,1735781458970,-567.2,0.00023013,3]
[347423800,1735781458980,-500.0,0.00023013,3]
[347423801,1735781458989,-552.0,0.00023013,3]
[347423802,1735781458998,-367.90156008,0.00023013,3]
[347423803,1735781459008,-682.65,0.00023013,3]
[347423804,1735781459017,-688.94,0.00023013,3]
[347423805,1735781459027,-500.0,0.00023013,3]
[347423806,1735781459036,-500.0,0.00023013,3]
[347423807,1735781459046,-614.51,0.00023013,3]
[347423808,1735781459055,-500.0,0.00023013,3]
[347423809,1735781459065,-500.0,0.00023013,3]
[347423810,1735781459075,-563.24,0.00023013,3]
[347423811,1735781459085,-1968.22,0.00023013,3]
[347423812,1735781459094,-500.0,0.00023013,3]
[347423813,1735781459103,-500.0,0.00023013,3]
[347423814,1735781459113,-500.0,0.00023013,3]
[347423815,1735781459122,-772.57,0.00023013,3]
[347423816,1735781459131,-500.0,0.00023013,3]
[347423817,1735781459141,-1364.88,0.00023013,3]
[347423818,1735781459150,-17282.47,0.00023013,3]
[347423819,1735781459160,-500.0,0.00023013,3]
[347423820,1735781459170,-920.77,0.00023013,3]
[347423821,1735781459179,-650.43,0.00023013,3]
[347423822,1735781459188,-668.77,0.00023013,3]
[347423823,1735781459198,-3722.61,0.00023013,3]
[347423824,1735781459207,-1336.34,0.00023013,3]
[347423825,1735781459217,-1957.8,0.00023013,3]
[347423826,1735781459226,-500.0,0.00023013,3]
[347423827,1735781459235,-2438.59,0.00023013,3]
[347423828,1735781459245,-907.56,0.00023013,2]
[347423829,1735781459254,-871.54,0.00023013,3]
[347423830,1735781459263,-500.0,0.00023013,3]
[347423831,1735781459272,-500.0,0.00023013,3]
[347423832,1735781459284,-499.0,0.00023013,6]
[347423833,1735781459294,-583.03,0.00023013,3]
[347423834,1735781459303,-1532.37,0.00023013,3]
[347423835,1735781459313,-500.0,0.00023013,3]
[347423836,1735781459322,-500.0,0.00023013,3]
[347423837,1735781459331,-955.72,0.00023013,3]
[347423838,1735781459341,-1437.5,0.00023013,3]
[347423839,1735781459350,-838.21,0.00023013,3]
[347423840,1735781459359,-841.01,0.00023013,3]
[347423841,1735781459369,-500.0,0.00023013,3]
[347423842,1735781459378,-962.78,0.00023013,3]
[347423843,1735781459387,-1333.99,0.00023013,3]
[347423844,1735781459397,-500.0,0.00023013,3]
[347423845,1735781459407,-2662.12727055,0.00023014,2]
[347423846,1735781459416,-167.0,0.00023026,2]
[347423847,1735781459425,-167.0,0.00023026,2]
[347423848,1735781459435,-167.0,0.00023033,2]
[347423849,1735781459444,-362.02254016,0.00023058,2]
[347423850,1735781459453,-5487.70513545,0.00023061,14]
[347423851,1735781459462,-151.0,0.000231,7]
[347423852,1735781459472,-2662.12727055,0.00023128,2]
[347423853,1735781459481,-324.64236567,0.00023128,2]
[347423854,1735781459490,-34548.37530036,0.00023228,10]
[347423855,1735781459781,189.0964034,0.00025,120]
[347423976,1735781884384,1342.21,0.00025,120]
[347423977,1735781884838,5000.0,0.00014222,14]
[347423978,1735781925920,-208.280125,0.00013973,2]
[347423980,1735781952963,1036.266,0.00025,120]
[347423981,1735781989581,3021.546533,0.0001,2]
[347423985,1735782424757,1235.29620186,0.00025,120]
[347424038,1735782632413,-303.20974928,0.00017976,2]
[347424041,1735782632423,-393.45180042,0.00017976,2]
[347424044,1735782632432,-196.30753947,0.00018076,2]
[347424047,1735782632441,-300.0,0.00018153,2]
[347424050,1735782632451,-4479.68053528,0.00018153,2]
[347424090,1735782638060,-630.31946472,0.00018153,2]
[347424092,1735782638071,-24900.0,0.00018154,2]
[347424094,1735782638080,-165.44655666,0.00019,2]
[347424096,1735782638089,-305.651279,0.000191,8]
[347424097,1735782638099,-179.95637273,0.00019137,2]
[347424099,1735782638109,-189.826,0.00019177,2]
[347424101,1735782638119,-598.54042202,0.00019177,2]
[347424103,1735782638128,-500.0,0.00019178,2]
[347424105,1735782638140,-500.0,0.00019178,2]
[347424106,1735782638149,-500.0,0.00019178,2]
[347424107,1735782638158,-500.0,0.00019178,2]
[347424108,1735782638167,-500.0,0.00019178,2]
[347424109,1735782638176,-500.0,0.00019178,2]
[347424110,1735782638186,-500.0,0.00019178,2]
[347424112,1735782638195,-500.0,0.00019178,2]
[347424114,1735782638205,-500.0,0.00019178,2]
[347424116,1735782638214,-500.0,0.00019178,2]
[347424118,1735782638223,-1196.25,0.00019178,2]
[347424119,1735782638233,-736.58,0.00019178,2]
[347424122,1735782638245,-500.0,0.00019178,2]
[347424123,1735782638255,-500.0,0.00019178,2]
[347424124,1735782638264,-500.0,0.00019178,2]
[347424125,1735782638274,-500.0,0.00019178,2]
[347424127,1735782638283,-500.0,0.00019178,2]
[347424129,1735782638292,-500.0,0.00019178,2]
[347424131,1735782638302,-500.0,0.00019178,2]
[347424133,1735782638311,-500.0,0.00019178,2]
[347424134,1735782638321,-1307.3,0.00019178,2]
[347424135,1735782638330,-1307.3,0.00019178,2]
[347424136,1735782638339,-1307.3,0.00019178,2]
[347424137,1735782638349,-1307.3,0.00019178,2]
[347424138,1735782638358,-1307.3,0.00019178,2]
[347424139,1735782638368,-1307.3,0.00019178,2]
[347424140,1735782638377,-500.0,0.00019178,2]
[347424141,1735782638387,-501.98622127,0.00019178,2]
[347424142,1735782638397,-501.68664818,0.00019178,2]
[347424143,1735782638406,-500.80504033,0.00019178,2]
[347424144,1735782638416,-500.0,0.00019178,2]
[347424145,1735782638425,-501.83909521,0.00019178,2]
[347424146,1735782638435,-501.47132768,0.00019178,2]
[347424147,1735782638445,-500.0,0.00019178,2]
[347424148,1735782638454,-501.94,0.00019178,2]
[347424149,1735782638464,-500.0,0.00019178,2]
[347424150,1735782638473,-500.0,0.00019178,2]
[347424151,1735782638482,-279.16660487,0.00019178,2]
[347424152,1735782638492,-825.08,0.00019178,2]
[347424153,1735782638501,-1406.71,0.00019178,2]
[347424154,1735782638510,-500.0,0.00019178,2]
[347424155,1735782638519,-500.0,0.00019178,2]
[347424156,1735782638528,-500.0,0.00019178,2]
[347424157,1735782638537,-576.68,0.00019178,2]
[347424159,1735782638547,-500.0,0.00019178,2]
[347424160,1735782638556,-500.0,0.00019178,2]
[347424161,1735782638565,-500.0,0.00019178,2]
[347424162,1735782638574,-500.0,0.00019178,2]
[347424164,1735782638583,-500.0,0.00019178,2]
[347424166,1735782638592,-500.0,0.00019178,2]
[347424168,1735782638601,-500.25,0.00019178,2]
[347424170,1735782638613,-500.0,0.00019178,2]
[347424171,1735782638624,-541.49,0.00019178,2]
[347424173,1735782638633,-6508.24,0.00019178,2]
[347424174,1735782638647,-500.0,0.00019178,2]
[347424175,1735782638657,-500.0,0.00019178,2]
[347424176,1735782638666,-500.0,0.00019178,2]
[347424177,1735782638675,-500.0,0.00019178,2]
[347424178,1735782638685,-514.61,0.00019178,2]
[347424179,1735782638695,-500.0,0.00019178,2]
[347424180,1735782638704,-500.0,0.00019178,2]
[347424181,1735782638714,-162.880324,0.00019178,2]
[347424182,1735782638724,-827.09,0.000192,2]
[347424183,1735782638733,-184.06359482,0.00019352,2]
[347424184,1735782638744,-152.65071365,0.00019388,2]
[347424185,1735782638754,-500.0,0.00019451,3]
[347424186,1735782638763,-500.0,0.00019451,3]
[347424187,1735782638773,-500.0,0.00019451,3]
[347424188,1735782638782,-1307.3,0.00019451,3]
[347424189,1735782638791,-1307.3,0.00019451,3]
[347424190,1735782638800,-1307.3,0.00019451,3]
[347424191,1735782638810,-1307.3,0.00019451,3]
[347424192,1735782638820,-741.73,0.00019451,3]
[347424193,1735782638829,-192.60396246,0.00019451,2]
[347424194,1735782638839,-500.0,0.00019452,3]
[347424195,1735782638848,-500.0,0.00019452,3]
[347424196,1735782638858,-500.0,0.00019452,3]
[347424197,1735782638868,-387.44019974,0.00019452,3]
[347424198,1735782638878,-500.0,0.00019452,3]
[347424199,1735782638888,-500.0,0.00019452,3]
[347424200,1735782638897,-500.0,0.00019452,3]
[347424201,1735782638906,-500.0,0.00019452,3]
[347424202,1735782638915,-500.0,0.00019452,3]
[347424203,1735782638925,-500.0,0.00019452,3]
[347424204,1735782638935,-1196.25,0.00019452,3]
[347424205,1735782638944,-736.58,0.00019452,3]
[347424206,1735782638954,-500.0,0.00019452,3]
[347424207,1735782638963,-500.0,0.00019452,3]
[347424208,1735782638972,-500.0,0.00019452,3]
[347424209,1735782638982,-500.0,0.00019452,3]